fUSD/lending_fUSD_20260121
["ID","MTS","AMOUNT","RATE_DAILY","PERIOD"]
[402919141,1768987596808,-841.94,0.00042191,120]
[402919142,1768987596853,-519.43,0.00042191,120]
[402919143,1768987596897,-500.0,0.00042191,120]
[402919144,1768987596944,-500.0,0.00042191,120]
[402919145,1768987596989,-500.0,0.00042191,120]
[402919146,1768987597036,-500.0,0.00042191,120]
[402919147,1768987597082,-622.11,0.00042191,120]
[402919148,1768987597133,-695.08,0.00042191,120]
[402919149,1768987597180,-500.0,0.00042191,120]
[402919150,1768987597226,-208.46022007,0.00042191,60]
[402919151,1768987597275,-586.24,0.00042191,120]
[402919152,1768987597321,-535.51,0.00042191,120]
[402919153,1768987597367,-500.0,0.00042191,120]
[402919154,1768987597418,-500.0,0.00042191,90]
[402919155,1768987597465,-500.0,0.00042191,120]
[402919156,1768987597510,-500.0,0.00042191,120]
[402919157,1768987597556,-644.47,0.00042191,120]
[402919158,1768987597602,-500.0,0.00042191,120]
[402919159,1768987597646,-590.15934511,0.00042191,120]
[402919160,1768987597695,-500.0,0.00042191,120]
[402919161,1768987597740,-500.0,0.00042191,120]
[402919162,1768987597786,-500.0,0.00042191,120]
[402919163,1768987597834,-500.0,0.00042191,120]
[402919164,1768987597887,-500.0,0.00042191,120]
[402919165,1768987597941,-512.80279555,0.00042191,120]
[402919166,1768987597992,-500.0,0.00042191,120]
[402919167,1768987598043,-696.85,0.00042191,120]
[402919168,1768987598099,-500.0,0.00042191,120]
[402919169,1768987598148,-500.0,0.00042191,120]
[402919170,1768987598202,-623.64,0.00042191,120]
[402919171,1768987598253,-889.13,0.00042191,120]
[402919172,1768987598303,-500.0,0.00042191,120]
[402919173,1768987598354,-691.15,0.00042191,120]
[402919174,1768987598412,-524.40876914,0.00042191,120]
[402919175,1768987598460,-500.0,0.00042191,120]
[402919176,1768987598506,-500.0,0.00042191,120]
[402919177,1768987598551,-500.0,0.00042191,120]
[402919178,1768987598599,-567.88,0.00042191,120]
[402919179,1768987598644,-500.0,0.00042191,120]
[402919180,1768987598692,-655.24,0.00042191,120]
[402919181,1768987598738,-500.0,0.00042191,120]
[402919182,1768987598785,-500.0,0.00042191,120]
[402919183,1768987598833,-500.0,0.00042191,120]
[402919184,1768987598879,-500.0,0.00042191,120]
[402919185,1768987598928,-500.0,0.00042191,120]
[402919186,1768987598976,-500.0,0.00042191,120]
[402919187,1768987599027,-645.41,0.00042191,120]
[402919188,1768987599074,-698.04,0.00042191,120]
[402919189,1768987599126,-545.16,0.00042191,120]
[402919190,1768987599181,-507.63,0.00042191,120]
[402919191,1768987599233,-500.0,0.00042191,120]
[402919192,1768987599287,-500.0,0.00042191,120]
[402919193,1768987599335,-500.0,0.00042191,120]
[402919194,1768987599381,-500.0,0.00042191,120]
[402919195,1768987599426,-600.0,0.00042192,120]
[402919196,1768987599470,-1000.0,0.00042192,30]
[402919197,1768987599513,-150.0,0.00042216,120]
[402919198,1768987599557,-150.0,0.00042216,30]
[402919199,1768987599603,-822.33829093,0.00042247,30]
[402919200,1768987599648,-150.0,0.0004228,30]
[402919201,1768987599692,-200.0,0.000423,120]
[402919202,1768987599735,-150.0,0.000423,120]
[402919203,1768987599777,-150.0,0.000423,120]
[402919204,1768987599820,-1517.0,0.00042322,30]
[402919205,1768987599863,-150.0,0.0004236,30]
[402919206,1768987599907,-150.0,0.0004236,30]
[402919207,1768987599951,-150.0,0.0004236,30]
[402919208,1768987599995,-1156.11152,0.00042391,120]
[402919209,1768987600039,-10000.0,0.000424,120]
[402919210,1768987600082,-200.0,0.000424,60]
[402919211,1768987600128,-200.0,0.000424,60]
[402919212,1768987600176,-200.0,0.000424,60]
[402919213,1768987600223,-200.0,0.000424,60]
[402919214,1768987600270,-200.0,0.000424,60]
[402919215,1768987600316,-200.0,0.000424,60]
[402919216,1768987600361,-200.0,0.000424,60]
[402919217,1768987600404,-200.0,0.000424,60]
[402919218,1768987600446,-200.0,0.000424,60]
[402919219,1768987600488,-200.0,0.000424,60]
[402919220,1768987600529,-200.0,0.000424,60]
[402919221,1768987600571,-200.0,0.000424,60]
[402919222,1768987600612,-200.0,0.000424,60]
[402919223,1768987600653,-200.0,0.000424,60]
[402919224,1768987600695,-259.8,0.000424,120]
[402919225,1768987600739,-822.33829093,0.00042411,30]
[402919226,1768987600781,-1100.0,0.00042436,60]
[402919227,1768987600823,-500.0,0.00042436,60]
[402919228,1768987600865,-150.0,0.0004244,30]
[402919229,1768987600907,-150.0,0.00042463,30]
[402919230,1768987600950,-150.0,0.00042463,30]
[402919231,1768987601166,-500.0,0.00042465,120]
[402919232,1768987601214,-500.0,0.00042465,30]
[402919233,1768987601261,-151.0,0.00042465,60]
[402919234,1768987601307,-344.35990898,0.00042465,120]
[402919235,1768987601353,-500.0,0.00042465,120]
[402919236,1768987601398,-500.0,0.00042465,120]
[402919237,1768987601441,-500.0,0.00042465,120]
[402919238,1768987601488,-500.75,0.00042465,120]
[402919239,1768987601532,-500.0,0.00042465,120]
[402919240,1768987601579,-505.45170365,0.00042465,120]
[402919241,1768987601623,-500.0,0.00042465,120]
[402919242,1768987601669,-500.0,0.00042465,120]
[402919243,1768987601714,-500.0,0.00042465,120]
[402919244,1768987601759,-500.0,0.00042465,120]
[402919245,1768987601804,-500.0,0.00042465,120]
[402919246,1768987601849,-500.0,0.00042465,120]
[402919247,1768987601895,-500.0,0.00042465,120]
[402919248,1768987601940,-500.0,0.00042465,120]
[402919249,1768987601987,-500.0,0.00042465,120]
[402919250,1768987602032,-500.0,0.00042465,120]
[402919251,1768987602078,-500.0,0.00042465,120]
[402919252,1768987602127,-500.0,0.00042465,120]
[402919253,1768987602176,-500.0,0.00042465,120]
[402919254,1768987602224,-500.0,0.00042465,120]
[402919255,1768987602271,-434.47677249,0.00042465,120]
[402919256,1768987602317,-611.38,0.00042465,120]
[402919257,1768987602363,-500.0,0.00042465,120]
[402919258,1768987602408,-863.09,0.00042465,120]
[402919259,1768987602453,-500.0,0.00042465,120]
[402919260,1768987602496,-500.0,0.00042465,60]
[402919261,1768987602539,-500.0,0.00042465,120]
[402919262,1768987602582,-500.0,0.00042465,120]
[402919263,1768987602627,-500.0,0.00042465,120]
[402919264,1768987602671,-500.0,0.00042465,120]
[402919265,1768987602715,-500.0,0.00042465,120]
[402919266,1768987602757,-500.0,0.00042465,120]
[402919267,1768987602799,-500.0,0.00042465,120]
[402919268,1768987602843,-500.0,0.00042465,120]
[402919269,1768987602886,-500.0,0.00042465,120]
[402919270,1768987602930,-500.0,0.00042465,120]
[402919271,1768987602976,-500.0,0.00042465,120]
[402919272,1768987603019,-500.0,0.00042465,120]
[402919273,1768987603064,-500.0,0.00042465,120]
[402919274,1768987603111,-730.65,0.00042465,120]
[402919275,1768987603161,-500.0,0.00042465,120]
[402919276,1768987603207,-500.0,0.00042465,120]
[402919277,1768987603253,-500.0,0.00042465,120]
[402919278,1768987603299,-500.0,0.00042465,120]
[402919279,1768987603349,-500.0,0.00042465,120]
[402919280,1768987603396,-500.0,0.00042465,120]
[402919281,1768987603441,-513.97358249,0.00042465,120]
[402919282,1768987603488,-729.02,0.00042465,120]
[402919283,1768987603534,-519.43685508,0.00042465,120]
[402919284,1768987603577,-738.03,0.00042465,120]
[402919285,1768987603620,-500.0,0.00042465,120]
[402919286,1768987603663,-1655.51,0.00042465,120]
[402919287,1768987603707,-500.0,0.00042465,120]
[402919288,1768987603752,-500.0,0.00042465,120]
[402919289,1768987603797,-500.0,0.00042465,120]
[402919290,1768987603841,-500.0,0.00042465,120]
[402919291,1768987603886,-500.0,0.00042465,120]
[402919292,1768987603933,-500.0,0.00042465,120]
[402919293,1768987603980,-928.92,0.00042465,120]
[402919294,1768987604026,-548.99,0.00042465,120]
[402919295,1768987604071,-500.0,0.00042465,120]
[402919296,1768987604120,-500.0,0.00042465,120]
[402919297,1768987604170,-500.0,0.00042465,120]
[402919298,1768987604218,-720.12,0.00042465,120]
[402919299,1768987604268,-500.0,0.00042465,120]
[402919300,1768987604315,-500.0,0.00042465,120]
[402919301,1768987604363,-500.0,0.00042465,120]
[402919302,1768987604416,-500.0,0.00042465,120]
[402919303,1768987604465,-500.0,0.00042465,120]
[402919304,1768987604523,-500.0,0.00042465,120]
[402919305,1768987604569,-500.0,0.00042465,120]
[402919306,1768987604616,-500.0,0.00042465,120]
[402919307,1768987604664,-500.0,0.00042465,120]
[402919308,1768987604708,-567.28,0.00042465,120]
[402919309,1768987604756,-677.69,0.00042465,120]
[402919310,1768987604802,-500.0,0.00042465,120]
[402919311,1768987604847,-500.0,0.00042465,120]
[402919312,1768987604893,-500.0,0.00042465,120]
[402919313,1768987604942,-553.98,0.00042465,45]
[402919314,1768987604991,-500.0,0.00042465,120]
[402919315,1768987605038,-500.0,0.00042465,120]
[402919316,1768987605086,-500.0,0.00042465,120]
[402919317,1768987605137,-500.0,0.00042465,120]
[402919318,1768987605185,-500.0,0.00042465,120]
[402919319,1768987605232,-500.0,0.00042465,120]
[402919320,1768987605280,-500.0,0.00042465,120]
[402919321,1768987605325,-1023.9,0.00042465,120]
[402919322,1768987605370,-500.0,0.00042465,120]
[402919323,1768987605416,-545.88,0.00042465,30]
[402919324,1768987605461,-1009.37,0.00042465,120]
[402919325,1768987605673,-500.0,0.00042465,120]
[402919326,1768987605720,-500.0,0.00042465,30]
[402919327,1768987605766,-500.0,0.00042465,120]
[402919328,1768987605813,-807.88,0.00042465,120]
[402919329,1768987605858,-866.91,0.00042465,120]
[402919330,1768987605904,-423.02372656,0.00042465,120]
[402919331,1768987605956,-517.71280064,0.00042465,120]
[402919332,1768987606003,-500.0,0.00042465,120]
[402919333,1768987606053,-500.0,0.00042465,120]
[402919334,1768987606102,-537.98,0.00042465,120]
[402919335,1768987606149,-500.0,0.00042465,120]
[402919336,1768987606198,-612.25,0.00042465,120]
[402919337,1768987606246,-500.0,0.00042465,120]
[402919338,1768987606295,-500.0,0.00042465,120]
[402919339,1768987606347,-500.0,0.00042465,120]
[402919340,1768987606392,-500.0,0.00042465,120]
[402919341,1768987606437,-594.51,0.00042465,120]
[402919342,1768987606481,-500.0,0.00042465,120]
[402919343,1768987606523,-500.0,0.00042465,120]
[402919344,1768987606566,-500.0,0.00042465,120]
[402919345,1768987606604,-550.02735383,0.00042465,120]
[402919346,1768987606646,-500.0,0.00042465,120]
[402919347,1768987606688,-500.0,0.00042465,120]
[402919348,1768987606731,-500.0,0.00042465,120]
[402919349,1768987606774,-500.0,0.00042465,120]
[402919350,1768987606815,-613.42,0.00042465,120]
[402919351,1768987606858,-236.86895788,0.00042465,120]
[402919352,1768987606900,-500.0,0.00042465,120]
[402919353,1768987606942,-674.99,0.00042465,120]
[402919354,1768987606985,-500.0,0.00042465,120]
[402919355,1768987607031,-500.0,0.00042465,120]
[402919356,1768987607079,-500.0,0.00042465,120]
[402919357,1768987607131,-500.0,0.00042465,60]
[402919358,1768987607177,-617.98,0.00042465,120]
[402919359,1768987607224,-500.0,0.00042465,120]
[402919360,1768987607271,-500.0,0.00042465,120]
[402919361,1768987607315,-548.41787731,0.00042465,120]
[402919362,1768987607360,-500.0,0.00042465,120]
[402919363,1768987607405,-500.0,0.00042465,120]
[402919364,1768987607452,-500.0,0.00042465,120]
[402919365,1768987607495,-1026.85,0.00042465,120]
[402919366,1768987607539,-500.0,0.00042465,120]
[402919367,1768987607582,-500.0,0.00042465,60]
[402919368,1768987607625,-728.23,0.00042465,120]
[402919369,1768987607668,-500.0,0.00042465,120]
[402919370,1768987607709,-500.0,0.00042465,120]
[402919371,1768987607751,-500.0,0.00042465,120]
[402919372,1768987607792,-500.0,0.00042465,120]
[402919373,1768987607832,-794.19,0.00042465,120]
[402919374,1768987607882,-500.0,0.00042465,120]
[402919375,1768987607928,-500.0,0.00042465,120]
[402919376,1768987607971,-500.0,0.00042465,120]
[402919377,1768987608016,-500.0,0.00042465,120]
[402919378,1768987608059,-4166.66,0.00042465,120]
[402919379,1768987608103,-746.35,0.00042465,120]
[402919380,1768987608148,-1172.0,0.00042465,120]
[402919381,1768987608195,-500.0,0.00042465,120]
[402919382,1768987608240,-500.0,0.00042465,120]
[402919383,1768987608285,-500.0,0.00042465,120]
[402919384,1768987608330,-500.0,0.00042465,120]
[402919385,1768987608374,-500.0,0.00042465,120]
[402919386,1768987608416,-500.0,0.00042465,120]
[402919387,1768987608459,-664.11,0.00042465,120]
[402919388,1768987608503,-500.0,0.00042465,120]
[402919389,1768987608551,-500.0,0.00042465,120]
[402919390,1768987608595,-500.0,0.00042465,120]
[402919391,1768987608637,-500.0,0.00042465,120]
[402919392,1768987608679,-287.12682365,0.00042465,120]
[402919393,1768987608720,-500.0,0.00042465,120]
[402919394,1768987608763,-500.0,0.00042465,120]
[402919395,1768987608806,-500.0,0.00042465,120]
[402919396,1768987608850,-500.0,0.00042465,120]
[402919397,1768987608894,-466.75603694,0.00042465,120]
[402919398,1768987608939,-500.0,0.00042465,120]
[402919399,1768987608984,-500.0,0.00042465,120]
[402919400,1768987609031,-500.0,0.00042465,120]
[402919401,1768987609079,-1120.51,0.00042465,120]
[402919402,1768987609134,-500.0,0.00042465,120]
[402919403,1768987609183,-500.0,0.00042465,120]
[402919404,1768987609232,-580.95,0.00042465,120]
[402919405,1768987609288,-588.65,0.00042465,120]
[402919406,1768987609337,-500.0,0.00042465,120]
[402919407,1768987609384,-500.0,0.00042465,120]
[402919408,1768987609431,-885.84,0.00042465,120]
[402919409,1768987609477,-500.0,0.00042465,120]
[402919410,1768987609524,-500.0,0.00042465,60]
[402919411,1768987609569,-500.0,0.00042465,120]
[402919412,1768987609614,-500.0,0.00042465,120]
[402919413,1768987609664,-500.0,0.00042465,120]
[402919414,1768987609710,-500.0,0.00042465,120]
[402919415,1768987609759,-691.81,0.00042465,120]
[402919416,1768987609806,-500.0,0.00042465,120]
[402919417,1768987609853,-500.0,0.00042465,120]
[402919418,1768987609899,-756.07,0.00042465,120]
[402919419,1768987610256,-500.0,0.00042465,120]
[402919420,1768987610305,-534.62,0.00042465,120]
[402919421,1768987610356,-500.0,0.00042465,120]
[402919422,1768987610402,-500.0,0.00042465,120]
[402919423,1768987610446,-515.72687018,0.00042465,120]
[402919424,1768987610491,-330.4804301,0.00042465,120]
[402919425,1768987610536,-500.0,0.00042465,120]
[402919426,1768987610581,-500.0,0.00042465,120]
[402919427,1768987610624,-500.0,0.00042465,120]
[402919428,1768987610667,-500.0,0.00042465,120]
[402919429,1768987610710,-509.12152912,0.00042465,120]
[402919430,1768987610768,-780.78,0.00042465,120]
[402919431,1768987610816,-500.0,0.00042465,120]
[402919432,1768987610862,-634.52841818,0.00042465,120]
[402919433,1768987610908,-500.0,0.00042465,120]
[402919434,1768987610955,-500.0,0.00042465,120]
[402919435,1768987611003,-500.0,0.00042465,120]
[402919436,1768987611048,-854.36,0.00042465,120]
[402919437,1768987611098,-500.0,0.00042465,120]
[402919438,1768987611146,-500.0,0.00042465,120]
[402919439,1768987611195,-726.21,0.00042465,120]
[402919440,1768987611243,-500.0,0.00042465,120]
[402919441,1768987611290,-862.89,0.00042465,120]
[402919442,1768987611335,-509.6214596,0.00042465,120]
[402919443,1768987611382,-500.0,0.00042465,120]
[402919444,1768987611427,-500.0,0.00042465,120]
[402919445,1768987611477,-500.0,0.00042465,120]
[402919446,1768987611524,-500.0,0.00042465,120]
[402919447,1768987611569,-500.0,0.00042465,120]
[402919448,1768987611615,-572.26,0.00042465,120]
[402919449,1768987611662,-500.0,0.00042465,120]
[402919450,1768987611708,-500.0,0.00042465,120]
[402919451,1768987611754,-500.0,0.00042465,120]
[402919452,1768987611799,-500.0,0.00042465,120]
[402919453,1768987611845,-500.0,0.00042465,120]
[402919454,1768987611892,-500.0,0.00042465,120]
[402919455,1768987611938,-1126.09,0.00042465,120]
[402919456,1768987611986,-500.0,0.00042465,120]
[402919457,1768987612034,-500.0,0.00042465,120]
[402919458,1768987612081,-152.74055436,0.00042465,120]
[402919459,1768987612137,-757.16,0.00042465,120]
[402919460,1768987612186,-500.0,0.00042465,120]
[402919461,1768987612233,-500.0,0.00042465,120]
[402919462,1768987612282,-500.0,0.00042465,120]
[402919463,1768987612330,-500.0,0.00042465,120]
[402919464,1768987612378,-500.0,0.00042465,120]
[402919465,1768987612426,-500.0,0.00042465,120]
[402919466,1768987612472,-500.0,0.00042465,120]
[402919467,1768987612520,-500.0,0.00042465,120]
[402919468,1768987612567,-500.0,0.00042465,120]
[402919469,1768987612619,-1000.0,0.00042465,120]
[402919470,1768987612668,-500.0,0.00042465,120]
[402919471,1768987612715,-500.0,0.00042465,120]
[402919472,1768987612761,-500.0,0.00042465,120]
[402919473,1768987612808,-760.9,0.00042465,120]
[402919474,1768987612855,-252.98413139,0.00042465,120]
[402919475,1768987612901,-500.0,0.00042465,120]
[402919476,1768987612950,-500.0,0.00042465,120]
[402919477,1768987613002,-668.11,0.00042465,120]
[402919478,1768987613050,-500.0,0.00042465,120]
[402919479,1768987613099,-500.0,0.00042465,120]
[402919480,1768987613150,-509.759268,0.00042465,120]
[402919481,1768987613202,-637.16,0.00042465,120]
[402919482,1768987613253,-505.66,0.00042465,120]
[402919483,1768987613304,-1065.16,0.00042465,120]
[402919484,1768987613354,-1064.67,0.00042465,120]
[402919485,1768987613410,-500.0,0.00042465,120]
[402919486,1768987613460,-871.03,0.00042465,120]
[402919487,1768987613509,-525.23,0.00042465,120]
[402919488,1768987613555,-500.0,0.00042465,120]
[402919489,1768987613605,-662.06,0.00042465,120]
[402919490,1768987613657,-1051.35,0.00042465,120]
[402919491,1768987613708,-1104.23,0.00042465,120]
[402919492,1768987613760,-500.0,0.00042465,120]
[402919493,1768987613809,-500.0,0.00042465,120]
[402919494,1768987613859,-500.0,0.00042465,120]
[402919495,1768987613908,-500.0,0.00042465,120]
[402919496,1768987613959,-662.74,0.00042465,120]
[402919497,1768987614009,-543.88,0.00042465,120]
[402919498,1768987614059,-500.0,0.00042465,120]
[402919499,1768987614109,-592.98,0.00042465,120]
[402919500,1768987614162,-500.0,0.00042465,120]
[402919501,1768987614212,-500.0,0.00042465,120]
[402919502,1768987614262,-732.36,0.00042465,120]
[402919503,1768987614312,-500.0,0.00042465,120]
[402919504,1768987614362,-500.0,0.00042465,120]
[402919505,1768987614410,-584.28,0.00042465,120]
[402919506,1768987614458,-500.0,0.00042465,120]
[402919507,1768987614504,-512.89,0.00042465,120]
[402919508,1768987614554,-594.65,0.00042465,120]
[402919509,1768987614601,-500.0,0.00042465,120]
[402919510,1768987614650,-500.0,0.00042465,120]
[402919511,1768987614698,-500.0,0.00042465,120]
[402919512,1768987614751,-500.0,0.00042465,120]
[402919513,1768987614800,-500.0,0.00042465,120]
[402919514,1768987615159,-500.0,0.00042465,120]
[402919515,1768987615215,-500.0,0.00042465,120]
[402919516,1768987615265,-500.0,0.00042465,120]
[402919517,1768987615315,-726.3,0.00042465,120]
[402919518,1768987615365,-500.0,0.00042465,120]
[402919519,1768987615414,-500.0,0.00042465,120]
[402919520,1768987615462,-669.38,0.00042465,120]
[402919521,1768987615508,-500.0,0.00042465,120]
[402919522,1768987615556,-500.0,0.00042465,120]
[402919523,1768987615607,-500.0,0.00042465,120]
[402919524,1768987615656,-501.79,0.00042465,120]
[402919525,1768987615705,-500.0,0.00042465,120]
[402919526,1768987615755,-500.0,0.00042465,120]
[402919527,1768987615804,-500.0,0.00042465,120]
[402919528,1768987615853,-633.52,0.00042465,120]
[402919529,1768987615902,-500.0,0.00042465,120]
[402919530,1768987615954,-885.04,0.00042465,120]
[402919531,1768987616009,-500.0,0.00042465,120]
[402919532,1768987616059,-500.0,0.00042465,120]
[402919533,1768987616109,-500.0,0.00042465,120]
[402919534,1768987616159,-157.81708723,0.00042465,120]
[402919535,1768987616209,-383.84200087,0.00042465,120]
[402919536,1768987616263,-594.03,0.00042465,120]
[402919537,1768987616312,-582.17,0.00042465,120]
[402919538,1768987616362,-500.0,0.00042465,120]
[402919539,1768987616414,-500.0,0.00042465,120]
[402919540,1768987616462,-500.0,0.00042465,120]
[402919541,1768987616510,-500.0,0.00042465,120]
[402919542,1768987616557,-470.7743365,0.00042465,120]
[402919543,1768987616607,-500.0,0.00042465,120]
[402919544,1768987616653,-284.65162804,0.00042465,120]
[402919545,1768987616700,-500.0,0.00042465,120]
[402919546,1768987616745,-500.0,0.00042465,120]
[402919547,1768987616792,-500.0,0.00042465,120]
[402919548,1768987616840,-500.0,0.00042465,120]
[402919549,1768987616884,-723.02,0.00042465,120]
[402919550,1768987616931,-500.0,0.00042465,120]
[402919551,1768987616980,-500.0,0.00042465,120]
[402919552,1768987617029,-521.11281742,0.00042465,120]
[402919553,1768987617077,-500.0,0.00042465,120]
[402919554,1768987617129,-679.71,0.00042465,120]
[402919555,1768987617181,-500.0,0.00042465,120]
[402919556,1768987617232,-586.0719927,0.00042465,120]
[402919557,1768987617282,-714.9,0.00042465,120]
[402919558,1768987617330,-500.0,0.00042465,120]
[402919559,1768987617377,-500.0,0.00042465,120]
[402919560,1768987617424,-589.5,0.00042465,120]
[402919561,1768987617470,-500.0,0.00042465,120]
[402919562,1768987617517,-500.0,0.00042465,120]
[402919563,1768987617562,-500.0,0.00042465,120]
[402919564,1768987617607,-1331.3,0.00042465,120]
[402919565,1768987617651,-500.0,0.00042465,120]
[402919566,1768987617696,-606.96,0.00042465,120]
[402919567,1768987617742,-515.74,0.00042465,120]
[402919568,1768987617790,-632.04,0.00042465,120]
[402919569,1768987617836,-513.47,0.00042465,120]
[402919570,1768987617885,-559.52,0.00042465,120]
[402919571,1768987617933,-500.0,0.00042465,120]
[402919572,1768987617983,-752.51,0.00042465,120]
[402919573,1768987618032,-500.0,0.00042465,120]
[402919574,1768987618082,-500.0,0.00042465,120]
[402919575,1768987618136,-500.0,0.00042465,120]
[402919576,1768987618187,-500.0,0.00042465,120]
[402919577,1768987618239,-500.0,0.00042465,120]
[402919578,1768987618290,-500.0,0.00042465,120]
[402919579,1768987618342,-669.57,0.00042465,120]
[402919580,1768987618391,-500.0,0.00042465,60]
[402919581,1768987618437,-500.0,0.00042465,60]
[402919582,1768987618483,-500.0,0.00042465,120]
[402919583,1768987618528,-500.0,0.00042465,120]
[402919584,1768987618574,-287.35323673,0.00042465,120]
[402919585,1768987618620,-500.0,0.00042465,120]
[402919586,1768987618665,-500.0,0.00042465,120]
[402919587,1768987618710,-1155.7,0.00042465,120]
[402919588,1768987618758,-1350.75,0.00042465,120]
[402919589,1768987618803,-500.0,0.00042465,120]
[402919590,1768987618848,-500.0,0.00042465,120]
[402919591,1768987618895,-529.76,0.00042465,120]
[402919592,1768987618941,-500.0,0.00042465,120]
[402919593,1768987618988,-766.15,0.00042465,120]
[402919594,1768987619036,-853.58,0.00042465,120]
[402919595,1768987619086,-841.94,0.00042465,120]
[402919596,1768987619140,-519.43,0.00042465,120]
[402919597,1768987619189,-500.0,0.00042465,120]
[402919598,1768987619239,-500.0,0.00042465,120]
[402919599,1768987619288,-500.0,0.00042465,120]
[402919600,1768987619337,-500.0,0.00042465,120]
[402919601,1768987619386,-622.11,0.00042465,120]
[402919602,1768987619433,-695.08,0.00042465,120]
[402919603,1768987619480,-500.0,0.00042465,120]
[402919604,1768987619529,-586.24,0.00042465,120]
[402919605,1768987619576,-535.51,0.00042465,120]
[402919606,1768987619623,-585.87323491,0.00042465,120]
[402919607,1768987619669,-500.0,0.00042465,90]
[402919608,1768987619911,-500.0,0.00042465,120]
[402919609,1768987619959,-500.0,0.00042465,120]
[402919610,1768987620007,-644.47,0.00042465,120]
[402919611,1768987620056,-500.0,0.00042465,120]
[402919612,1768987620107,-500.0,0.00042465,120]
[402919613,1768987620156,-500.0,0.00042465,120]
[402919614,1768987620208,-500.0,0.00042465,120]
[402919615,1768987620261,-500.0,0.00042465,120]
[402919616,1768987620309,-500.0,0.00042465,120]
[402919617,1768987620356,-500.0,0.00042465,120]
[402919618,1768987620404,-696.85,0.00042465,120]
[402919619,1768987620450,-500.0,0.00042465,120]
[402919620,1768987620495,-500.0,0.00042465,120]
[402919621,1768987620539,-623.64,0.00042465,120]
[402919622,1768987620583,-889.13,0.00042465,120]
[402919623,1768987620625,-500.0,0.00042465,120]
[402919624,1768987620669,-691.15,0.00042465,120]
[402919625,1768987620713,-500.0,0.00042465,120]
[402919626,1768987620756,-500.0,0.00042465,120]
[402919627,1768987620800,-500.0,0.00042465,120]
[402919628,1768987620844,-567.88,0.00042465,120]
[402919629,1768987620888,-500.0,0.00042465,120]
[402919630,1768987620932,-655.24,0.00042465,120]
[402919631,1768987620977,-500.0,0.00042465,120]
[402919632,1768987621020,-500.0,0.00042465,120]
[402919633,1768987621064,-240.28323592,0.00042465,120]
[402919634,1768987621108,-500.0,0.00042465,120]
[402919635,1768987621152,-500.0,0.00042465,120]
[402919636,1768987621197,-500.0,0.00042465,120]
[402919637,1768987621245,-645.41,0.00042465,120]
[402919638,1768987621292,-698.04,0.00042465,120]
[402919639,1768987621338,-545.16,0.00042465,120]
[402919640,1768987621382,-507.63,0.00042465,120]